[Event "*** Titled Tuesday Blitz"]
[Site "Chess.com"]
[Date "2019.05.07"]
[Round "3"]
[White "Tartody"]
[Black "Vice64"]
[Result "1/2-1/2"]
[WhiteElo "2495"]
[BlackElo "2535"]
[TimeControl "180+2"]
[EndTime "13:41:33 PDT"]
[Termination "Game drawn - insufficient material"]

1. Nf3 {[%clk 0:03:01.9]} 1... Nf6 {[%clk 0:02:59.6]} 2. b3 {[%clk 0:03:03.1]}
2... e6 {[%clk 0:03:00.3]} 3. Bb2 {[%clk 0:03:04.4]} 3... b6 {[%clk 0:03:01.8]}
4. g3 {[%clk 0:03:05.3]} 4... Bb7 {[%clk 0:03:02.9]} 5. Bg2 {[%clk 0:03:06.8]}
5... Be7 {[%clk 0:03:00.1]} 6. c4 {[%clk 0:03:08.1]} 6... O-O {[%clk 0:03:01]}
7. O-O {[%clk 0:03:09.1]} 7... d5 {[%clk 0:03:02.3]} 8. cxd5 {[%clk 0:03:07.3]}
8... exd5 {[%clk 0:03:02.1]} 9. d4 {[%clk 0:03:07.9]} 9... Ne4 {[%clk
0:03:02.1]} 10. Nbd2 {[%clk 0:03:05.4]} 10... Nxd2 {[%clk 0:03:01.7]} 11. Qxd2
{[%clk 0:03:05.8]} 11... Nd7 {[%clk 0:03:02.8]} 12. Rfc1 {[%clk 0:03:04.6]}
12... Bd6 {[%clk 0:03:02]} 13. Ne5 {[%clk 0:03:00.9]} 13... Bxe5 {[%clk
0:02:41.5]} 14. dxe5 {[%clk 0:03:01.6]} 14... Nc5 {[%clk 0:02:41.3]} 15. Ba3
{[%clk 0:02:56.5]} 15... Re8 {[%clk 0:02:35.4]} 16. Bxc5 {[%clk 0:02:56.3]}
16... bxc5 {[%clk 0:02:36.5]} 17. Rxc5 {[%clk 0:01:53.4]} 17... Rxe5 {[%clk
0:02:34.3]} 18. e4 {[%clk 0:01:54.2]} 18... c6 {[%clk 0:02:27.5]} 19. Rac1
{[%clk 0:01:11.7]} 19... h5 {[%clk 0:02:06]} 20. h4 {[%clk 0:01:09.1]} 20... Rc8
{[%clk 0:02:03.2]} 21. exd5 {[%clk 0:01:02.5]} 21... cxd5 {[%clk 0:02:03.7]} 22.
Rxc8 {[%clk 0:01:01.1]} 22... Bxc8 {[%clk 0:02:05.3]} 23. f4 {[%clk 0:00:57.7]}
23... Re8 {[%clk 0:02:00.8]} 24. Qxd5 {[%clk 0:00:56.9]} 24... Qb6+ {[%clk
0:02:00.1]} 25. Kh2 {[%clk 0:00:43.6]} 25... Bg4 {[%clk 0:01:50.9]} 26. Rc2
{[%clk 0:00:18]} 26... Re1 {[%clk 0:01:37.1]} 27. Qc5 {[%clk 0:00:18.7]} 27...
Qxc5 {[%clk 0:01:33.5]} 28. Rxc5 {[%clk 0:00:20.6]} 28... Re2 {[%clk 0:01:34.9]}
29. Kg1 {[%clk 0:00:22]} 29... Rxa2 {[%clk 0:01:35.4]} 30. Bd5 {[%clk
0:00:17.2]} 30... a5 {[%clk 0:01:21.3]} 31. Rb5 {[%clk 0:00:12]} 31... g6 {[%clk
0:01:08.2]} 32. Rb7 {[%clk 0:00:12.7]} 32... Be6 {[%clk 0:01:08.9]} 33. Bxe6
{[%clk 0:00:13.4]} 33... fxe6 {[%clk 0:01:10.8]} 34. Re7 {[%clk 0:00:14.5]}
34... Ra1+ {[%clk 0:01:02.8]} 35. Kf2 {[%clk 0:00:15.2]} 35... Ra2+ {[%clk
0:01:04]} 36. Kg1 {[%clk 0:00:06.1]} 36... Ra1+ {[%clk 0:01:04.9]} 37. Kg2
{[%clk 0:00:07.4]} 37... Ra2+ {[%clk 0:01:06.2]} 38. Kh3 {[%clk 0:00:06.5]}
38... Ra3 {[%clk 0:01:04.4]} 39. Rxe6 {[%clk 0:00:05.3]} 39... Kf7 {[%clk
0:01:05.6]} 40. Rb6 {[%clk 0:00:06.3]} 40... a4 {[%clk 0:01:02.5]} 41. bxa4
{[%clk 0:00:05.6]} 41... Rxa4 {[%clk 0:01:04.4]} 42. Rb5 {[%clk 0:00:06.4]}
42... Kf6 {[%clk 0:01:03.4]} 43. Rb6+ {[%clk 0:00:07.4]} 43... Kf5 {[%clk
0:01:02.6]} 44. Rb5+ {[%clk 0:00:08.7]} 44... Kf6 {[%clk 0:01:02.9]} 45. Rc5
{[%clk 0:00:07.3]} 45... Ra3 {[%clk 0:01:02.3]} 46. Rc6+ {[%clk 0:00:07.7]}
46... Kf5 {[%clk 0:01:03.1]} 47. Rc8 {[%clk 0:00:09.2]} 47... Ra1 {[%clk
0:01:02.1]} 48. Rf8+ {[%clk 0:00:09.9]} 48... Ke6 {[%clk 0:01:03.6]} 49. Kg2
{[%clk 0:00:09.6]} 49... Ra2+ {[%clk 0:01:04.3]} 50. Kh3 {[%clk 0:00:09.9]}
50... Ra3 {[%clk 0:01:04.5]} 51. Rb8 {[%clk 0:00:07]} 51... Kf5 {[%clk
0:01:05.1]} 52. Rb2 {[%clk 0:00:08.1]} 52... Rc3 {[%clk 0:01:04.9]} 53. Re2
{[%clk 0:00:09.4]} 53... Rc5 {[%clk 0:01:04.8]} 54. Re8 {[%clk 0:00:08.3]} 54...
Rc3 {[%clk 0:01:05.3]} 55. Re5+ {[%clk 0:00:08.7]} 55... Kf6 {[%clk 0:01:06.6]}
56. Kg2 {[%clk 0:00:10.3]} 56... Rc2+ {[%clk 0:01:07.9]} 57. Kf3 {[%clk
0:00:10.9]} 57... Rc3+ {[%clk 0:01:09.2]} 58. Re3 {[%clk 0:00:12.3]} 58... Rc4
{[%clk 0:01:10.4]} 59. Ra3 {[%clk 0:00:13.7]} 59... Rc1 {[%clk 0:01:10.4]} 60.
Ra6+ {[%clk 0:00:13.3]} 60... Kf5 {[%clk 0:01:11]} 61. Ra5+ {[%clk 0:00:14.5]}
61... Kf6 {[%clk 0:01:12.4]} 62. Rg5 {[%clk 0:00:15.6]} 62... Rc3+ {[%clk
0:01:12.5]} 63. Ke4 {[%clk 0:00:16.6]} 63... Ra3 {[%clk 0:01:12.7]} 64. f5
{[%clk 0:00:09.1]} 64... gxf5+ {[%clk 0:01:07.7]} 65. Kf4 {[%clk 0:00:09.8]}
65... Ra4+ {[%clk 0:00:51.1]} 66. Kf3 {[%clk 0:00:11.2]} 66... Ra3+ {[%clk
0:00:48.3]} 67. Kg2 {[%clk 0:00:12.5]} 67... Ke5 {[%clk 0:00:44.6]} 68. Rxh5
{[%clk 0:00:11.8]} 68... Ke4 {[%clk 0:00:46]} 69. Rg5 {[%clk 0:00:11.3]} 69...
f4 {[%clk 0:00:34.5]} 70. Rg4 {[%clk 0:00:11.7]} 70... Rxg3+ {[%clk 0:00:34.8]}
71. Rxg3 {[%clk 0:00:11.9]} 71... fxg3 {[%clk 0:00:36.7]} 72. Kxg3 {[%clk
0:00:13.5]} 72... Kf5 {[%clk 0:00:38]} 73. h5 {[%clk 0:00:15]} 73... Kg5 {[%clk
0:00:39.2]} 74. h6 {[%clk 0:00:16.9]} 74... Kxh6 {[%clk 0:00:40.3]} 1/2-1/2

[Event "*** Titled Tuesday Blitz"]
[Site "Chess.com"]
[Date "2019.05.07"]
[Round "3"]
[White "DenishevM"]
[Black "tteshan"]
[Result "1-0"]
[WhiteElo "2601"]
[BlackElo "2309"]
[TimeControl "180+2"]
[EndTime "13:41:45 PDT"]
[Termination "DenishevM won by resignation"]

1. Nf3 {[%clk 0:03:01.9]} 1... c5 {[%clk 0:02:58.1]} 2. c4 {[%clk 0:03:03.4]}
2... Nc6 {[%clk 0:02:57.7]} 3. Nc3 {[%clk 0:03:04.9]} 3... g6 {[%clk 0:02:55.9]}
4. d4 {[%clk 0:03:05.5]} 4... cxd4 {[%clk 0:02:55.4]} 5. Nxd4 {[%clk 0:03:07.4]}
5... Bg7 {[%clk 0:02:56.7]} 6. Nc2 {[%clk 0:03:07.1]} 6... Nf6 {[%clk
0:02:55.5]} 7. e4 {[%clk 0:03:08.3]} 7... O-O {[%clk 0:02:51.8]} 8. Be3 {[%clk
0:03:09.6]} 8... d6 {[%clk 0:02:51.1]} 9. Be2 {[%clk 0:03:10]} 9... Bd7 {[%clk
0:02:52.2]} 10. O-O {[%clk 0:03:10.5]} 10... Rc8 {[%clk 0:02:52.7]} 11. f3
{[%clk 0:03:08]} 11... h5 {[%clk 0:02:46.6]} 12. Qd2 {[%clk 0:03:05.4]} 12... a5
{[%clk 0:02:37.2]} 13. Rad1 {[%clk 0:03:04.2]} 13... Ne5 {[%clk 0:02:37.2]} 14.
b3 {[%clk 0:03:02.5]} 14... a4 {[%clk 0:02:30.5]} 15. Nd4 {[%clk 0:03:01.2]}
15... axb3 {[%clk 0:02:25.6]} 16. axb3 {[%clk 0:03:03.1]} 16... Ra8 {[%clk
0:02:25.8]} 17. Ndb5 {[%clk 0:02:47.9]} 17... Bc6 {[%clk 0:02:16.8]} 18. Ra1
{[%clk 0:02:35.9]} 18... Ned7 {[%clk 0:02:07.6]} 19. Bd3 {[%clk 0:01:37.1]}
19... Nc5 {[%clk 0:01:54.9]} 20. Bc2 {[%clk 0:01:38]} 20... Nfd7 {[%clk
0:01:47.4]} 21. Rad1 {[%clk 0:01:33.5]} 21... Qa5 {[%clk 0:01:38.9]} 22. Nd5
{[%clk 0:00:52.7]} 22... Bxd5 {[%clk 0:01:38.5]} 23. Qxa5 {[%clk 0:00:49.6]}
23... Rxa5 {[%clk 0:01:37.2]} 24. exd5 {[%clk 0:00:51.2]} 24... Ra2 {[%clk
0:01:33.5]} 25. Rf2 {[%clk 0:00:35.5]} 25... Rfa8 {[%clk 0:01:26.6]} 26. h4
{[%clk 0:00:31.9]} 26... Rb2 {[%clk 0:01:19.8]} 27. Bc1 {[%clk 0:00:28.1]} 27...
Rba2 {[%clk 0:01:11.8]} 28. Bg5 {[%clk 0:00:26.8]} 28... Kf8 {[%clk 0:01:07.6]}
29. Re1 {[%clk 0:00:24]} 29... Nf6 {[%clk 0:00:54.8]} 30. Rfe2 {[%clk
0:00:16.5]} 30... Ncd7 {[%clk 0:00:34.1]} 31. Bf4 {[%clk 0:00:07.2]} 31... Rb2
{[%clk 0:00:25]} 32. Kh2 {[%clk 0:00:05.5]} 32... Raa2 {[%clk 0:00:25.4]} 33.
Bd3 {[%clk 0:00:05.3]} 33... Rxe2 {[%clk 0:00:26.3]} 34. Rxe2 {[%clk 0:00:07.2]}
34... Rxe2 {[%clk 0:00:27.5]} 35. Bxe2 {[%clk 0:00:09.1]} 35... Nc5 {[%clk
0:00:28.8]} 36. Nxd6 {[%clk 0:00:07.3]} 36... Nxb3 {[%clk 0:00:28.7]} 37. Nxb7
{[%clk 0:00:08]} 37... Nd4 {[%clk 0:00:27.1]} 38. Bd3 {[%clk 0:00:07.2]} 38...
Ke8 {[%clk 0:00:27.3]} 39. Be4 {[%clk 0:00:07]} 39... Nd7 {[%clk 0:00:23.9]} 40.
c5 {[%clk 0:00:05.5]} 40... Nb3 {[%clk 0:00:20.5]} 41. c6 {[%clk 0:00:06.3]}
41... Nb6 {[%clk 0:00:21.5]} 42. Be3 {[%clk 0:00:04.8]} 42... Nc8 {[%clk
0:00:21.9]} 43. Nc5 {[%clk 0:00:04.8]} 43... Nxc5 {[%clk 0:00:22.4]} 44. Bxc5
{[%clk 0:00:06.7]} 44... Be5+ {[%clk 0:00:22.3]} 45. g3 {[%clk 0:00:07.5]} 45...
Bc7 {[%clk 0:00:24.2]} 46. Kg2 {[%clk 0:00:08.8]} 46... Nd6 {[%clk 0:00:25]} 47.
Kf2 {[%clk 0:00:08.4]} 47... Kf8 {[%clk 0:00:25.4]} 48. Bd4 {[%clk 0:00:09.1]}
48... Ke8 {[%clk 0:00:25.8]} 49. Bd3 {[%clk 0:00:10.5]} 49... Kd8 {[%clk
0:00:26.3]} 50. g4 {[%clk 0:00:11.9]} 50... hxg4 {[%clk 0:00:25.1]} 51. fxg4
{[%clk 0:00:13]} 51... Ke8 {[%clk 0:00:26]} 52. h5 {[%clk 0:00:14.5]} 52... gxh5
{[%clk 0:00:26.9]} 53. gxh5 {[%clk 0:00:16.4]} 53... Kf8 {[%clk 0:00:27.9]} 54.
h6 {[%clk 0:00:18]} 54... f6 {[%clk 0:00:27.4]} 55. Bh7 {[%clk 0:00:15.1]} 55...
Kf7 {[%clk 0:00:26.5]} 56. Kf3 {[%clk 0:00:15.7]} 56... Nc4 {[%clk 0:00:24.2]}
57. Ke4 {[%clk 0:00:13.9]} 57... Nd6+ {[%clk 0:00:23.3]} 58. Kf3 {[%clk
0:00:14.2]} 58... Nc4 {[%clk 0:00:24]} 59. Kg4 {[%clk 0:00:15.6]} 59... Nd6
{[%clk 0:00:24.6]} 60. Kh5 {[%clk 0:00:16.1]} 60... Nb5 {[%clk 0:00:25.4]} 61.
Bg6+ {[%clk 0:00:15.2]} 61... Kg8 {[%clk 0:00:25]} 62. Bc5 {[%clk 0:00:15.5]}
62... Nd6 {[%clk 0:00:25]} 63. Bd3 {[%clk 0:00:15.4]} 63... Kh8 {[%clk
0:00:21.8]} 64. Kg6 {[%clk 0:00:15.9]} 64... Kg8 {[%clk 0:00:22.9]} 65. Bd4
{[%clk 0:00:13.2]} 65... Kh8 {[%clk 0:00:21.3]} 66. Be3 {[%clk 0:00:14.3]} 66...
Kg8 {[%clk 0:00:22]} 67. h7+ {[%clk 0:00:14.8]} 67... Kh8 {[%clk 0:00:23.4]} 68.
Bh6 {[%clk 0:00:16.1]} 68... Ne8 {[%clk 0:00:24.5]} 69. Bf5 {[%clk 0:00:13.7]}
69... Bd6 {[%clk 0:00:24.3]} 70. Bd7 {[%clk 0:00:14.1]} 70... f5 {[%clk
0:00:21.7]} 71. Bxe8 {[%clk 0:00:14.7]} 71... Be5 {[%clk 0:00:22.1]} 72. c7
{[%clk 0:00:16]} 72... Bf6 {[%clk 0:00:18.7]} 1-0

[Event "*** Titled Tuesday Blitz"]
[Site "Chess.com"]
[Date "2019.05.07"]
[Round "3"]
[White "valeriocarnicelli"]
[Black "vovachesss"]
[Result "1-0"]
[WhiteElo "2525"]
[BlackElo "2517"]
[TimeControl "180+2"]
[EndTime "13:41:47 PDT"]
[Termination "valeriocarnicelli won by resignation"]

1. e4 {[%clk 0:03:01.9]} 1... e5 {[%clk 0:03:01]} 2. Nf3 {[%clk 0:02:45.1]} 2...
d5 {[%clk 0:03:01.4]} 3. Nxe5 {[%clk 0:02:42.5]} 3... Bd6 {[%clk 0:03:01.3]} 4.
d4 {[%clk 0:02:41.5]} 4... dxe4 {[%clk 0:02:59.3]} 5. Nc4 {[%clk 0:02:40.4]}
5... Nf6 {[%clk 0:02:59.4]} 6. Nxd6+ {[%clk 0:02:40.8]} 6... Qxd6 {[%clk
0:03:00.4]} 7. Nc3 {[%clk 0:02:41.1]} 7... O-O {[%clk 0:03:01.7]} 8. h3 {[%clk
0:02:41.4]} 8... Rd8 {[%clk 0:03:01.9]} 9. Be3 {[%clk 0:02:42.3]} 9... c6 {[%clk
0:03:01.5]} 10. Qd2 {[%clk 0:02:42.8]} 10... Nbd7 {[%clk 0:03:01.6]} 11. g4
{[%clk 0:02:42.6]} 11... Nb6 {[%clk 0:03:01.8]} 12. O-O-O {[%clk 0:02:42.8]}
12... a5 {[%clk 0:02:59.9]} 13. g5 {[%clk 0:02:42.9]} 13... Nfd5 {[%clk
0:02:58.3]} 14. Nxe4 {[%clk 0:02:43.1]} 14... Qc7 {[%clk 0:02:43.2]} 15. Kb1
{[%clk 0:02:28.4]} 15... Bf5 {[%clk 0:02:41.2]} 16. Bd3 {[%clk 0:02:19.5]} 16...
Bxe4 {[%clk 0:02:30.9]} 17. Bxe4 {[%clk 0:02:20.3]} 17... Nc4 {[%clk 0:02:32.5]}
18. Qd3 {[%clk 0:01:59.5]} 18... b5 {[%clk 0:02:33.3]} 19. Bxh7+ {[%clk
0:01:59.3]} 19... Kf8 {[%clk 0:02:32.2]} 20. Bc1 {[%clk 0:01:51.8]} 20... Nb4
{[%clk 0:02:11.6]} 21. Qf3 {[%clk 0:01:45.4]} 21... Qd6 {[%clk 0:01:37.3]} 22.
Be4 {[%clk 0:01:38.7]} 22... Re8 {[%clk 0:01:26.3]} 23. Rhe1 {[%clk 0:01:37.5]}
23... Rad8 {[%clk 0:01:22]} 24. h4 {[%clk 0:01:37.4]} 24... Qe6 {[%clk 0:01:21]}
25. b3 {[%clk 0:01:17.9]} 25... Nd6 {[%clk 0:01:11.9]} 26. Bxc6 {[%clk
0:01:05.5]} 26... Qxe1 {[%clk 0:01:12.8]} 27. Rxe1 {[%clk 0:01:07.4]} 27... Rxe1
{[%clk 0:01:14.2]} 28. g6 {[%clk 0:00:57.3]} 28... Rc8 {[%clk 0:01:07.6]} 29. c3
{[%clk 0:00:18.4]} 29... Rxc6 {[%clk 0:01:04.3]} 30. Kb2 {[%clk 0:00:16.1]}
30... Rc7 {[%clk 0:00:54]} 31. Bf4 {[%clk 0:00:16.2]} 31... Re6 {[%clk
0:00:32.7]} 32. cxb4 {[%clk 0:00:16.3]} 32... axb4 {[%clk 0:00:27]} 33. Qa8+
{[%clk 0:00:10.9]} 33... Ke7 {[%clk 0:00:23.2]} 34. Qf3 {[%clk 0:00:06.5]} 34...
fxg6 {[%clk 0:00:16.9]} 35. Bg5+ {[%clk 0:00:07.2]} 35... Kd7 {[%clk 0:00:18.4]}
36. Be3 {[%clk 0:00:06.5]} 36... Nf5 {[%clk 0:00:17]} 37. d5 {[%clk 0:00:06.5]}
37... Re8 {[%clk 0:00:14.2]} 38. h5 {[%clk 0:00:07]} 38... Nxe3 {[%clk
0:00:13.9]} 39. fxe3 {[%clk 0:00:08.9]} 39... gxh5 {[%clk 0:00:15.2]} 40. e4
{[%clk 0:00:08.8]} 40... Rec8 {[%clk 0:00:16.1]} 41. Qf5+ {[%clk 0:00:07.8]}
41... Kd6 {[%clk 0:00:16.9]} 42. Qf4+ {[%clk 0:00:07.1]} 42... Kc5 {[%clk
0:00:17.5]} 43. d6 {[%clk 0:00:06.8]} 43... Rc6 {[%clk 0:00:14.9]} 44. e5 {[%clk
0:00:05.8]} 44... Kd5 {[%clk 0:00:14.2]} 45. d7 {[%clk 0:00:04.6]} 45... Rd8
{[%clk 0:00:14.2]} 46. Qd2+ {[%clk 0:00:05]} 46... Kxe5 {[%clk 0:00:14.9]} 47.
Qg5+ {[%clk 0:00:05.8]} 47... Kd6 {[%clk 0:00:11.3]} 48. Qxd8 {[%clk 0:00:07]}
48... Rc7 {[%clk 0:00:12.9]} 49. Qf8+ {[%clk 0:00:07.9]} 49... Kxd7 {[%clk
0:00:13.8]} 50. Qxg7+ {[%clk 0:00:09.3]} 50... Kc6 {[%clk 0:00:14.9]} 51. Qg6+
{[%clk 0:00:10.6]} 51... Kb7 {[%clk 0:00:16]} 52. Qxh5 {[%clk 0:00:12.5]} 52...
Kb6 {[%clk 0:00:17]} 53. Qg6+ {[%clk 0:00:13.7]} 53... Rc6 {[%clk 0:00:18.3]}
54. Qf5 {[%clk 0:00:15]} 54... Rc5 {[%clk 0:00:19.3]} 55. Qe4 {[%clk 0:00:16.2]}
55... Ka5 {[%clk 0:00:19.8]} 56. Qa8+ {[%clk 0:00:16.7]} 56... Kb6 {[%clk
0:00:20.9]} 57. Qe4 {[%clk 0:00:18.4]} 57... Ka5 {[%clk 0:00:22.1]} 58. Qe1
{[%clk 0:00:19.5]} 58... Rg5 {[%clk 0:00:14.3]} 59. Qf2 {[%clk 0:00:19.6]} 59...
Rg7 {[%clk 0:00:13.9]} 60. Qd2 {[%clk 0:00:18.5]} 60... Rc7 {[%clk 0:00:10]} 61.
a3 {[%clk 0:00:17.4]} 61... Rc6 {[%clk 0:00:10.5]} 62. Qxb4+ {[%clk 0:00:17.7]}
62... Ka6 {[%clk 0:00:12.1]} 63. a4 {[%clk 0:00:16.8]} 63... bxa4 {[%clk
0:00:12.9]} 64. Qxa4+ {[%clk 0:00:18.3]} 64... Kb6 {[%clk 0:00:14.3]} 65. Qd4+
{[%clk 0:00:19.6]} 65... Kb5 {[%clk 0:00:15.3]} 66. Qd5+ {[%clk 0:00:17.7]}
66... Rc5 {[%clk 0:00:16]} 67. Qb7+ {[%clk 0:00:18.6]} 67... Ka5 {[%clk
0:00:15.9]} 68. Ka3 {[%clk 0:00:10.9]} 68... Rc3 {[%clk 0:00:07.2]} 69. Qb4+
{[%clk 0:00:10.9]} 69... Ka6 {[%clk 0:00:08.7]} 70. Qxc3 {[%clk 0:00:12.2]} 1-0

[Event "*** Titled Tuesday Blitz"]
[Site "Chess.com"]
[Date "2019.05.07"]
[Round "3"]
[White "superstructure"]
[Black "BvsN"]
[Result "1/2-1/2"]
[WhiteElo "2276"]
[BlackElo "2283"]
[TimeControl "180+2"]
[EndTime "13:42:11 PDT"]
[Termination "Game drawn by stalemate"]

1. e4 {[%clk 0:03:01.9]} 1... c5 {[%clk 0:03:00.6]} 2. Nf3 {[%clk 0:03:01.8]}
2... e6 {[%clk 0:03:01.9]} 3. c4 {[%clk 0:03:00]} 3... Nc6 {[%clk 0:02:59.8]} 4.
Nc3 {[%clk 0:02:57.9]} 4... Nge7 {[%clk 0:03:00.9]} 5. a3 {[%clk 0:02:54.8]}
5... a6 {[%clk 0:02:57.8]} 6. b4 {[%clk 0:02:51]} 6... cxb4 {[%clk 0:02:51.1]}
7. axb4 {[%clk 0:02:52.9]} 7... Nxb4 {[%clk 0:02:51.1]} 8. Ba3 {[%clk
0:02:52.2]} 8... Ng6 {[%clk 0:02:39.1]} 9. Qb3 {[%clk 0:02:41]} 9... Nc6 {[%clk
0:02:34.5]} 10. Bxf8 {[%clk 0:02:39.7]} 10... Nxf8 {[%clk 0:02:21.6]} 11. d4
{[%clk 0:02:36.8]} 11... Ng6 {[%clk 0:02:20.8]} 12. Be2 {[%clk 0:01:47.6]} 12...
O-O {[%clk 0:02:13.6]} 13. O-O {[%clk 0:01:43.6]} 13... d6 {[%clk 0:01:55.3]}
14. Rfd1 {[%clk 0:01:38.5]} 14... Qf6 {[%clk 0:01:51.5]} 15. Qb6 {[%clk
0:01:06]} 15... Nf4 {[%clk 0:01:41.5]} 16. Rac1 {[%clk 0:00:45.2]} 16... Qg6
{[%clk 0:01:29]} 17. Ne1 {[%clk 0:00:18]} 17... Nxe2+ {[%clk 0:01:12.5]} 18.
Nxe2 {[%clk 0:00:19.9]} 18... Qxe4 {[%clk 0:01:13]} 19. Ng3 {[%clk 0:00:21]}
19... Qg6 {[%clk 0:01:12.1]} 20. Nf3 {[%clk 0:00:21.3]} 20... Qf6 {[%clk
0:00:54.9]} 21. d5 {[%clk 0:00:18.9]} 21... exd5 {[%clk 0:00:52]} 22. Rxd5
{[%clk 0:00:14.1]} 22... Bg4 {[%clk 0:00:46.6]} 23. Nd4 {[%clk 0:00:08.7]} 23...
Nxd4 {[%clk 0:00:46.3]} 24. Rxd4 {[%clk 0:00:10.6]} 24... Be6 {[%clk 0:00:38.6]}
25. Rxd6 {[%clk 0:00:10.6]} 25... Qe7 {[%clk 0:00:31.8]} 26. c5 {[%clk
0:00:10.1]} 26... Rac8 {[%clk 0:00:28.3]} 27. Re1 {[%clk 0:00:07.4]} 27... Qc7
{[%clk 0:00:26.4]} 28. Qxc7 {[%clk 0:00:06.6]} 28... Rxc7 {[%clk 0:00:27.2]} 29.
Rc1 {[%clk 0:00:08.2]} 29... Rfc8 {[%clk 0:00:26.2]} 30. Ne4 {[%clk 0:00:08.4]}
30... Kf8 {[%clk 0:00:25.2]} 31. Ng5 {[%clk 0:00:08.9]} 31... Bf5 {[%clk
0:00:18.6]} 32. h3 {[%clk 0:00:05.8]} 32... Rxc5 {[%clk 0:00:15.6]} 33. Rcd1
{[%clk 0:00:06.2]} 33... Rc1 {[%clk 0:00:15.8]} 34. Rxc1 {[%clk 0:00:06.1]}
34... Rxc1+ {[%clk 0:00:16.6]} 35. Kh2 {[%clk 0:00:08]} 35... Ke7 {[%clk
0:00:15.8]} 36. Rb6 {[%clk 0:00:08.8]} 36... Rc7 {[%clk 0:00:16.5]} 37. g4
{[%clk 0:00:09.3]} 37... Bg6 {[%clk 0:00:15.4]} 38. Nf3 {[%clk 0:00:09.3]} 38...
f6 {[%clk 0:00:15.5]} 39. Nd4 {[%clk 0:00:10.2]} 39... Rd7 {[%clk 0:00:14.8]}
40. Nb3 {[%clk 0:00:09]} 40... Kd8 {[%clk 0:00:13.9]} 41. Nc5 {[%clk 0:00:09.7]}
41... Rd2 {[%clk 0:00:14.1]} 42. Rxb7 {[%clk 0:00:08.6]} 42... Rxf2+ {[%clk
0:00:13.5]} 43. Kg3 {[%clk 0:00:10.1]} 43... Rc2 {[%clk 0:00:14.1]} 44. Ne6+
{[%clk 0:00:10.9]} 44... Kc8 {[%clk 0:00:15.3]} 45. Rxg7 {[%clk 0:00:11.7]}
45... a5 {[%clk 0:00:15]} 46. Ra7 {[%clk 0:00:11.7]} 46... Ra2 {[%clk
0:00:12.1]} 47. Nf8 {[%clk 0:00:12.8]} 47... a4 {[%clk 0:00:12]} 48. Nxh7 {[%clk
0:00:13.4]} 48... Bxh7 {[%clk 0:00:10.5]} 49. Rxh7 {[%clk 0:00:15.3]} 49... Rc2
{[%clk 0:00:08.7]} 50. Ra7 {[%clk 0:00:15.5]} 50... Rc3+ {[%clk 0:00:09.6]} 51.
Kg2 {[%clk 0:00:15.9]} 51... a3 {[%clk 0:00:10.2]} 52. h4 {[%clk 0:00:16]} 52...
Kb8 {[%clk 0:00:11.1]} 53. Ra4 {[%clk 0:00:16.2]} 53... Rc2+ {[%clk 0:00:07.8]}
54. Kg3 {[%clk 0:00:16.6]} 54... a2 {[%clk 0:00:08.1]} 55. h5 {[%clk 0:00:17.4]}
55... f5 {[%clk 0:00:03.2]} 56. g5 {[%clk 0:00:17]} 56... f4+ {[%clk 0:00:02.8]}
57. Kxf4 {[%clk 0:00:17.2]} 57... Rc4+ {[%clk 0:00:04.1]} 58. Rxc4 {[%clk
0:00:15.1]} 58... a1=Q {[%clk 0:00:05.3]} 59. Re4 {[%clk 0:00:12.1]} 59... Qf1+
{[%clk 0:00:05.9]} 60. Ke5 {[%clk 0:00:12.9]} 60... Qb5+ {[%clk 0:00:06.7]} 61.
Kf6 {[%clk 0:00:12.8]} 61... Qc6+ {[%clk 0:00:06.7]} 62. Re6 {[%clk 0:00:13.7]}
62... Qc3+ {[%clk 0:00:07.8]} 63. Kg6 {[%clk 0:00:14.4]} 63... Qd3+ {[%clk
0:00:08.2]} 64. Kh6 {[%clk 0:00:14.3]} 64... Qd5 {[%clk 0:00:08.6]} 65. Rf6
{[%clk 0:00:14.3]} 65... Kc7 {[%clk 0:00:08.6]} 66. g6 {[%clk 0:00:14.1]} 66...
Qd2+ {[%clk 0:00:09.4]} 67. Kh7 {[%clk 0:00:14.3]} 67... Qd3 {[%clk 0:00:09.1]}
68. h6 {[%clk 0:00:14.2]} 68... Kd8 {[%clk 0:00:08.7]} 69. Rf7 {[%clk 0:00:15]}
69... Ke8 {[%clk 0:00:08.6]} 70. Kg7 {[%clk 0:00:15.4]} 70... Qd4+ {[%clk
0:00:09.3]} 71. Kg8 {[%clk 0:00:15.7]} 71... Qd3 {[%clk 0:00:05.5]} 72. Kg7
{[%clk 0:00:14.4]} 72... Qd4+ {[%clk 0:00:06.4]} 73. Kh7 {[%clk 0:00:14]} 73...
Qd3 {[%clk 0:00:06.8]} 74. Ra7 {[%clk 0:00:12.6]} 74... Qe4 {[%clk 0:00:05.6]}
75. Rg7 {[%clk 0:00:10.3]} 75... Qf5 {[%clk 0:00:05.6]} 76. Kh8 {[%clk
0:00:10.4]} 76... Qf6 {[%clk 0:00:04.1]} 77. Kh7 {[%clk 0:00:10.5]} 77... Kf8
{[%clk 0:00:03.3]} 78. Rf7+ {[%clk 0:00:10.4]} 78... Qxf7+ {[%clk 0:00:04.4]}
79. gxf7 {[%clk 0:00:12.3]} 79... Kxf7 {[%clk 0:00:05.8]} 80. Kh8 {[%clk
0:00:12.3]} 80... Kf8 {[%clk 0:00:07.4]} 81. h7 {[%clk 0:00:12.9]} 81... Kf7
{[%clk 0:00:09]} 1/2-1/2